bitfinex-derivatives/quotes_SOLF0:USTF0_20240906
["timestamp","ask_amount","ask_price","bid_price","bid_amount"]
[1725642637804,3.94492428,126.48,126.41,37.9]
[1725642638007,37.9,126.51,126.41,37.9]
[1725642638200,3.9573,126.44,126.41,37.9]
[1725642639102,3.87802761,126.47,126.41,37.9]
[1725642639301,37.9,126.49,126.41,37.9]
[1725642639706,3.9572,126.44,126.41,37.9]
[1725642640105,3.9565,126.46,126.41,37.9]
[1725642640405,37.9,126.52,126.43,37.9]
[1725642640607,37.9,126.52,126.44,2.7637]
[1725642640809,3.9562,126.47,126.44,2.7637]
[1725642641006,3.88119431,126.48,126.44,2.7637]
[1725642641199,37.9,126.52,126.44,2.7637]
[1725642641399,3.9565,126.46,126.44,2.7637]
[1725642641604,37.9,126.52,126.44,2.7637]
[1725642641804,37.9,126.52,126.44,6.7205]
[1725642642012,37.9,126.52,126.44,2.7637]
[1725642642504,37.9,126.52,126.44,6.7205]
[1725642643111,3.956,126.48,126.44,2.7637]
[1725642643712,3.956,126.48,126.45,6.32]
[1725642644306,3.9561,126.47,126.45,6.32]
[1725642644813,37.9,126.5,126.45,6.32]
[1725642645922,37.9,126.48,126.45,6.32]
[1725642646211,41.78809275,126.48,126.45,6.32]
[1725642647209,3.9563,126.46,126.45,6.32]
[1725642647611,3.9563,126.46,126.45,4.2662]
[1725642647801,3.91024513,126.55,126.45,4.2662]
[1725642647802,51.26737192,126.57,126.45,4.2662]
[1725642648111,1.3817,126.57,126.5,37.9]
[1725642648405,5.25576052,126.57,126.5,37.9]
[1725642648605,5.25576052,126.57,126.46,2.766]
[1725642648606,37.9,126.56,126.46,40.666]
[1725642648914,37.9,126.54,126.46,2.766]
[1725642649817,37.9,126.52,126.45,4.2662]
[1725642650107,3.9563,126.47,126.45,4.2662]
[1725642650308,37.9,126.49,126.45,4.2662]
[1725642651013,41.84375838,126.49,126.45,4.2662]
[1725642652817,3.9563,126.46,126.45,4.2662]
[1725642654319,3.94375838,126.49,126.45,4.2662]
[1725642654510,39.2895,126.51,126.45,4.2662]
[1725642654715,3.9561,126.47,126.45,4.2662]
[1725642656115,3.9559,126.48,126.45,4.2662]
[1725642656419,7.97722106,126.48,126.45,4.2662]
[1725642656618,3.9559,126.48,126.45,4.2662]
[1725642656814,39.2895,126.51,126.45,4.2662]
[1725642657322,1.3895,126.51,126.45,8.2227]
[1725642657616,3.94729931,126.5,126.45,8.2227]
[1725642658123,3.9556,126.49,126.45,4.2662]
[1725642658621,3.9549,126.51,126.45,4.2662]
[1725642658819,22.16656228,126.58,126.46,39.3132]
[1725642658820,37.9,126.56,126.46,39.3132]
[1725642659319,3.9543,126.53,126.48,3.9555]
[1725642659520,3.90823009,126.52,126.47,5.32728801]
[1725642659719,3.9555,126.49,126.43,3.9571]
[1725642659920,37.9,126.5,126.43,3.9571]
[1725642660322,3.9559,126.48,126.44,3.9569]
[1725642660722,3.93236718,126.52,126.44,37.9]
[1725642660922,3.9553,126.5,126.46,3.9562]
[1725642661419,3.9551,126.5,126.46,3.9562]
[1725642661923,3.86351712,126.53,126.42,2.6068]
[1725642662122,37.9,126.5,126.42,2.6068]
[1725642662424,39.2328,126.52,126.44,37.9]
[1725642662716,28.37986868,126.66,126.42,2.6068]
[1725642662717,37.9,126.58,126.48,37.9]
[1725642662917,3.9549,126.51,126.49,2.6999]
[1725642663113,1.3328,126.59,126.49,2.6999]
[1725642663114,3.91667742,126.53,126.49,2.6999]
[1725642663316,37.9,126.56,126.49,2.6999]
[1725642663725,3.9547,126.52,126.49,2.6999]
[1725642664127,1.3328,126.59,126.49,2.6999]
[1725642664128,3.9531,126.57,126.52,3.9542]
[1725642664322,96.2397165,126.62,126.53,37.9]
[1725642664626,41.79398525,126.64,126.55,37.9]
[1725642664825,3.9518,126.61,126.56,2.8072]
[1725642665226,3.9514,126.62,126.56,2.8072]
[1725642665529,64.97621225,126.69,126.56,2.8072]
[1725642665530,37.9,126.69,126.57,39.2875]
[1725642665730,37.9,126.69,126.59,41.8522]
[1725642665930,37.9,126.69,126.58,44.22]
[1725642666122,0.6542355,126.68,126.58,44.22]
[1725642666529,3.951,126.64,126.58,48.1726]
[1725642667428,37.9,126.68,126.6,37.9]
[1725642668026,3.9507,126.64,126.6,37.9]
[1725642668329,43.26458111,126.7,126.6,37.9]
[1725642669023,43.26458111,126.7,126.6,41.8518]
[1725642669226,37.9,126.68,126.6,37.9]
[1725642669427,37.9,126.68,126.58,44.22]
[1725642669626,37.9,126.68,126.58,48.1725]
[1725642669627,3.9512,126.63,126.58,48.1725]
[1725642670432,3.96271749,126.63,126.58,6.32]
[1725642670626,37.9,126.66,126.58,6.32]
[1725642671226,37.9,126.68,126.6,37.9]
[1725642671835,37.9,126.67,126.58,44.22]
[1725642672134,37.9,126.67,126.58,6.32]
[1725642672735,3.9515,126.62,126.58,6.32]
[1725642672932,7.83213595,126.62,126.58,6.32]
[1725642673328,3.9512,126.63,126.58,44.22]
[1725642673534,37.9,126.67,126.58,44.22]
[1725642674140,3.9514,126.62,126.58,44.22]
[1725642674340,37.9,126.67,126.59,3.9521]
[1725642674546,3.9511,126.63,126.58,44.22]
[1725642674935,3.9511,126.63,126.58,48.1725]
[1725642675338,5.36458111,126.7,126.6,37.9]
[1725642675533,37.9,126.73,126.63,37.9]
[1725642675740,56.78085308,126.75,126.67,37.9]
[1725642675741,22.13906397,126.75,126.67,37.9]
[1725642675948,0.65581479,126.74,126.69,37.9]
[1725642676249,26.10122239,126.75,126.69,37.9]
[1725642676451,22.13906397,126.76,126.73,37.9]
[1725642676944,264.9,126.83,126.73,37.9]
[1725642677245,1.2847,126.84,126.75,37.9]
[1725642677439,3.88111247,126.85,126.77,37.9]
[1725642677645,37.9,126.87,126.77,37.9]
[1725642677944,3.9457,126.81,126.75,45.47]
[1725642678144,4.01790222,126.8,126.73,48.1502]
[1725642678441,4.00090233,126.79,126.73,48.1502]
[1725642678747,3.9462,126.79,126.73,48.1502]
[1725642678938,7.98224873,126.79,126.73,48.1502]
[1725642679250,4.60308206,126.78,126.73,48.1502]
[1725642679445,45.47,126.82,126.73,2.6802]
[1725642679643,0.61675278,126.77,126.69,45.47]
[1725642679844,3.85558945,126.77,126.69,48.2157]
[1725642680051,0.61675278,126.76,126.7,3.9488]
[1725642680350,3.8583536,126.77,126.69,48.2157]
[1725642680549,1.3695,126.83,126.69,48.2157]
[1725642680752,3.9479,126.73,126.69,48.2157]
[1725642680952,4.03091531,126.74,126.69,2.7457]
[1725642681144,228.3695,126.83,126.69,2.7457]
[1725642681145,46.8395,126.77,126.69,2.7457]
[1725642681339,3.9488,126.7,126.65,45.47]
[1725642681544,46.8395,126.77,126.65,45.47]
[1725642681849,3.9485,126.72,126.65,45.47]
[1725642682047,46.8395,126.77,126.65,45.47]
[1725642682241,0.65511822,126.76,126.66,3.9499]
[1725642682446,0.65511822,126.76,126.67,49.43842933]
[1725642682638,0.65511822,126.76,126.69,45.47]
[1725642682838,3.9476,126.75,126.7,1.2882]
[1725642683046,1.4022,126.8,126.7,5.32339534]
[1725642683344,0.65500104,126.79,126.7,1.2882]
[1725642683550,4.54639267,126.79,126.7,1.2882]
[1725642683850,0.65500104,126.78,126.7,1.2882]
[1725642684154,0.65500104,126.77,126.71,3.9485]
[1725642684447,3.9676392,126.79,126.71,45.47]
[1725642684651,46.7864,126.83,126.71,45.47]
[1725642684849,0.65519638,126.82,126.72,3.9481]
[1725642685049,4.6078231,126.82,126.72,3.9481]
[1725642685246,0.65519638,126.81,126.73,45.47]
[1725642685453,0.65519638,126.8,126.73,45.47]
[1725642685648,0.65519638,126.8,126.74,1.3664]
[1725642685856,3.88985595,126.8,126.74,1.3664]
[1725642686156,0.65539828,126.79,126.74,1.3664]
[1725642686456,3.92381815,126.8,126.74,1.3664]
[1725642686653,46.7864,126.83,126.74,1.3664]
[1725642686852,0.65530334,126.82,126.74,5.314]
[1725642687052,4.01741164,126.82,126.74,1.3664]
[1725642687254,46.7864,126.83,126.74,1.3664]
[1725642687648,3.9466,126.78,126.74,1.3664]
[1725642687846,3.88156286,126.79,126.74,1.3664]
[1725642688051,46.7864,126.83,126.74,1.3664]
[1725642688251,3.946,126.8,126.74,1.3664]
[1725642688858,3.86300213,126.81,126.74,1.3664]
[1725642689157,45.47,126.82,126.71,45.47]
[1725642689456,3.9461,126.79,126.71,46.8735]
[1725642689650,3.9461,126.79,126.73,45.47]
[1725642690059,3.9461,126.79,126.75,3.9471]
[1725642690255,3.9457,126.81,126.73,45.47]
[1725642690455,45.47,126.85,126.73,45.47]
[1725642690753,45.47,126.85,126.75,45.47]
[1725642690957,45.47,126.85,126.76,3.9468]
[1725642691450,3.9457,126.81,126.76,3.9468]
[1725642691654,7.81471531,126.81,126.76,3.9468]
[1725642692358,46.7812,126.86,126.77,45.47]
[1725642692666,46.7812,126.86,126.78,2.7992]
[1725642693159,45.47,126.86,126.78,2.7992]
[1725642693356,45.47,126.86,126.79,6.3]
[1725642693556,1.3112,126.88,126.79,6.3]
[1725642693557,45.47,126.87,126.79,6.3]
[1725642693748,45.47,126.85,126.79,6.3]
[1725642693958,3.9456,126.81,126.79,6.3]
[1725642694157,45.47,126.87,126.79,6.3]
[1725642694660,0.65423064,126.86,126.79,6.3]
[1725642694958,1.3112,126.88,126.79,6.3]
[1725642695150,0.65424963,126.87,126.79,6.3]
[1725642695355,0.65424963,126.87,126.79,10.2458]
[1725642696155,0.65424963,126.87,126.79,6.3]
[1725642696362,1.3112,126.88,126.79,6.3]
[1725642696563,0.65427819,126.87,126.79,6.3]
[1725642696862,1.3112,126.88,126.79,6.3]
[1725642697356,4.03638053,126.89,126.79,51.77]
[1725642697560,45.47,126.91,126.79,51.77]
[1725642697561,46.7971,126.91,126.79,51.77]
[1725642697861,3.9445,126.84,126.8,3.9456]
[1725642698252,3.9443,126.85,126.81,3.9454]
[1725642698855,3.9441,126.86,126.81,41.8254]
[1725642699655,3.9441,126.86,126.81,37.88]
[1725642700053,43.13940985,126.91,126.81,37.88]
[1725642700250,37.88,126.89,126.81,37.88]
[1725642700658,3.9445,126.84,126.81,37.88]
[1725642700857,3.96269803,126.84,126.79,6.3]
[1725642701058,37.88,126.89,126.79,6.3]
[1725642701360,37.88,126.89,126.79,10.246]
[1725642701562,37.88,126.89,126.8,37.88]
[1725642701859,3.945,126.83,126.79,6.3]
[1725642702058,37.88,126.89,126.79,6.3]
[1725642702249,0.65497831,126.88,126.8,37.88]
[1725642702450,3.9443,126.85,126.8,37.88]
[1725642702655,37.88,126.9,126.8,37.88]
[1725642702859,5.25940985,126.91,126.8,37.88]
[1725642702860,3.9447,126.84,126.8,37.88]
[1725642703757,37.88,126.89,126.8,37.88]
[1725642703961,0.65482504,126.88,126.8,37.88]
[1725642704260,3.9447,126.84,126.8,37.88]
[1725642705664,3.9447,126.84,126.79,10.246]
[1725642705665,3.85288446,126.84,126.79,44.18]
[1725642705855,37.88,126.87,126.79,44.18]
[1725642706060,0.65478751,126.86,126.79,48.126]
[1725642706261,37.88,126.89,126.79,44.18]
[1725642706454,0.65475663,126.88,126.79,44.18]
[1725642706657,3.9452,126.82,126.79,44.18]
[1725642707665,3.945,126.83,126.79,48.1259]
[1725642707862,43.13940985,126.91,126.81,37.88]
[1725642708168,0.65527325,126.9,126.81,41.8252]
[1725642708459,0.65527325,126.9,126.83,37.88]
[1725642708660,0.65527325,126.9,126.84,41.8244]
[1725642708857,7.8811,126.97,126.86,37.88]
[1725642708858,3.92481146,126.92,126.86,37.88]
[1725642709165,0.65522502,126.91,126.86,37.88]
[1725642709556,0.65522502,126.91,126.85,8.0348]
[1725642709758,3.9428,126.9,126.85,11.97066171]
[1725642710062,3.9428,126.9,126.86,3.9438]
[1725642710263,3.9429,126.89,126.85,8.02666171]
[1725642710461,3.9429,126.89,126.85,11.97066171]
[1725642711461,3.9436,126.87,126.85,4.0908]
[1725642711660,41.87001379,126.91,126.85,2.7233]
[1725642711858,37.88,126.91,126.81,41.79151525]
[1725642712168,37.88,126.89,126.8,4.0097]
[1725642712359,37.88,126.89,126.8,7.87269605]
[1725642712559,37.88,126.87,126.8,4.0097]
[1725642712766,37.88,126.87,126.8,2.7185]
[1725642712957,37.88,126.89,126.8,2.7185]
[1725642713262,39.2637,126.9,126.81,37.88]
[1725642713464,39.2637,126.9,126.81,39.2893]
[1725642713663,3.9433,126.88,126.82,3.9449]
[1725642713859,39.2637,126.9,126.81,39.2893]
[1725642714262,39.2637,126.9,126.83,3.9446]
[1725642714463,39.2637,126.9,126.81,39.2893]
[1725642714863,3.9435,126.88,126.81,39.2893]
[1725642715370,3.9435,126.88,126.84,3.9443]
[1725642715570,3.9431,126.89,126.81,39.2893]
[1725642715774,3.87167428,126.91,126.83,37.88]
[1725642715975,3.943,126.89,126.85,3.9439]
[1725642716674,3.9553656,126.91,126.83,37.88]
[1725642716872,37.88,126.93,126.85,37.88]
[1725642717071,3.9425,126.91,126.87,3.9434]
[1725642717267,3.86815261,126.93,126.86,2.7287]
[1725642717476,3.86815261,126.93,126.87,37.88]
[1725642717765,3.9422,126.92,126.88,3.943]
[1725642718673,3.9422,126.92,126.87,45.86226055]
[1725642719071,3.9418,126.93,126.87,41.91886055]
[1725642719270,3.9418,126.93,126.87,43.25466055]
[1725642719669,7.78891626,126.93,126.87,43.25466055]
[1725642719874,4.02899716,126.93,126.89,3.9429]
[1725642720072,37.88,126.97,126.87,43.25466055]
[1725642720375,37.88,126.95,126.87,39.2158]
[1725642720674,37.88,126.95,126.87,1.3358]
[1725642720975,41.77564414,126.97,126.87,43.09694144]
[1725642721173,37.88,126.97,126.87,39.2158]
[1725642721372,3.9416,126.94,126.89,41.8227]
[1725642721573,3.96240124,126.94,126.89,41.8227]
[1725642721766,37.88,126.96,126.87,47.15513077]
[1725642721974,37.88,126.95,126.86,2.7287]
[1725642722180,38.53088651,126.95,126.86,2.7287]
[1725642722371,3.9425,126.91,126.86,2.7287]
[1725642722873,41.91222155,126.95,126.89,41.8228]
[1725642722874,3.9416,126.94,126.89,41.8228]
[1725642723174,3.9416,126.94,126.87,3.86654624]
[1725642723175,1.3805,126.98,126.91,37.88]
[1725642723379,3.9394,127.01,126.96,3.9406]
[1725642723574,3.9394,127.01,126.95,37.88]
[1725642723575,3.90638721,127.01,126.95,37.88]
[1725642723875,3.9401,126.99,126.95,37.88]
[1725642724080,3.87001465,126.98,126.96,6.3]
[1725642724271,1.3266,127.03,126.96,6.3]
[1725642724474,43.11170341,127.03,126.96,6.3]
[1725642724781,39.2066,127.03,126.96,6.3]
[1725642724981,39.1466,127.03,126.96,6.3]
[1725642725183,43.0134606,127.03,126.96,6.3]
[1725642725476,5.1334606,127.03,126.96,6.3]
[1725642726071,0.65110596,127.02,126.96,6.3]
[1725642726269,38.53110596,127.02,126.96,6.3]
[1725642726472,3.9404,126.98,126.96,6.3]
[1725642726681,37.88,127.01,126.96,6.3]
[1725642727677,41.8204,126.97,126.96,4.2302]
[1725642728074,3.9404,126.97,126.96,4.2302]
[1725642729176,13.0109606,127.03,126.96,4.2302]
[1725642729177,3.8668606,127.03,126.96,4.2302]
[1725642729379,344.0,127.04,126.97,2.706]
[1725642729573,3.9394,127.01,126.97,2.706]
[1725642730278,3.9396,127.0,126.97,2.706]
[1725642730472,37.88,127.03,126.96,4.2302]
[1725642730677,0.65105964,127.02,126.96,4.2302]
[1725642730882,3.9401,126.98,126.96,4.2302]
[1725642731175,3.96795091,126.98,126.96,4.2302]
[1725642731376,3.9402,126.98,126.96,4.2302]
[1725642731577,7.8789835,126.98,126.96,4.2302]
[1725642732383,3.9404,126.97,126.96,4.2302]
[1725642734880,3.9387835,126.98,126.96,4.2302]
[1725642735085,37.88,127.03,126.96,4.2302]
[1725642735283,3.9404,126.97,126.96,4.2302]
[1725642735488,7.92900567,126.97,126.96,4.2302]
[1725642735786,3.9404,126.97,126.96,4.2302]
[1725642736185,7.94438286,126.97,126.96,4.2302]
[1725642738481,8.59538914,126.97,126.96,4.2302]
[1725642739282,46.47538914,126.97,126.96,4.2302]
[1725642739484,42.53498914,126.97,126.72,236.8962]
[1725642739685,37.88,126.92,126.84,39.2635]
[1725642739990,0.65100628,126.96,126.86,37.88]
[1725642739991,37.88,126.96,126.86,37.88]
[1725642740188,41.77832371,126.96,126.87,1.4166]
[1725642740487,41.77832371,126.96,126.9,37.88]
[1725642740488,3.89832371,126.96,126.9,37.88]
[1725642740684,105.294442,126.98,126.9,37.88]
[1725642740878,109.20183983,126.98,126.9,37.88]
[1725642741078,109.20183983,126.98,126.89,3.96578787]
[1725642741079,3.9416,126.94,126.89,3.96578787]
[1725642741279,3.9416,126.94,126.9,1.347]
[1725642741482,3.9417,126.93,126.9,1.347]
[1725642742484,147.08183983,126.98,126.9,39.227]
[1725642742485,109.20183983,126.98,126.9,39.227]
[1725642742680,109.20183983,126.98,126.92,37.88]
[1725642742984,3.90739783,126.98,126.93,1.4166]
[1725642743283,227.0,127.02,126.94,37.88]
[1725642743486,37.88,127.04,126.95,39.2999]
[1725642743683,3.9394,127.01,126.95,43.2407]
[1725642743884,3.9394,127.01,126.96,1.347]
[1725642744083,3.9394,127.01,126.96,5.2877]
[1725642744482,37.88,127.05,126.97,6.3]
[1725642744483,7.95949361,127.0,126.97,6.3]
[1725642745086,3.9391,127.02,126.97,6.3]
[1725642745287,37.88,127.08,126.97,44.18]
[1725642745480,0.6510597,127.07,126.99,37.88]
[1725642745682,4.53342551,127.07,127.0,1.2859]
[1725642745881,3.88236581,127.07,127.0,1.2859]
[1725642746087,3.9382,127.05,127.0,1.2859]
[1725642746382,37.88,127.09,127.01,37.88]
[1725642746580,0.65107523,127.08,127.01,39.2834]
[1725642746779,4.03802981,127.08,127.02,1.3726]
[1725642746986,3.9388,127.03,127.0,1.2859]
[1725642748479,3.9392,127.01,126.98,1.39]
[1725642748687,3.9392,127.01,126.97,44.18]
[1725642748688,3.93399547,127.0,126.97,6.3]
[1725642748982,3.9401,126.98,126.97,6.3]
[1725642749488,4.00532204,127.0,126.97,6.3]
[1725642749687,37.88,127.02,126.97,6.3]
[1725642749988,3.9392,127.01,126.97,6.3]
[1725642750388,102.84990873,127.1,126.97,6.3]
[1725642750593,37.88,127.04,126.97,6.3]
[1725642750886,41.79054034,127.04,126.97,6.3]
[1725642751296,3.91054034,127.04,126.97,6.3]
[1725642751487,37.88,127.05,126.97,6.3]
[1725642752283,3.97440843,127.05,126.98,39.1664]
[1725642752494,3.9369,127.09,127.04,3.9381]
[1725642752894,106.74270794,127.1,127.0,37.88]
[1725642753193,3.9372,127.08,127.02,3.9387]
[1725642753591,102.84990873,127.1,127.0,37.88]
[1725642753793,3.9369,127.09,127.03,3.9383]
[1725642754298,3.9369,127.09,127.02,37.88]
[1725642754686,106.82642018,127.1,127.02,37.88]
[1725642754893,106.82642018,127.1,127.02,41.8187]
[1725642755193,0.65139078,127.09,127.02,41.8187]
[1725642755395,0.65139078,127.09,127.02,37.88]
[1725642755587,37.88,127.08,126.99,37.88]
[1725642756194,3.938,127.05,127.0,3.9394]
[1725642756593,3.938,127.05,126.99,37.88]
[1725642756594,37.88,127.08,126.99,37.88]
[1725642756784,37.88,127.08,127.0,3.9395]
[1725642757390,3.9382,127.05,127.0,3.9395]
[1725642757592,37.88,127.08,126.99,41.8197]
[1725642757898,37.88,127.05,126.98,4.0673]
[1725642758089,3.9389,127.02,126.98,4.0673]
[1725642758292,37.88,127.04,126.97,6.3]
[1725642758589,37.88,127.0,126.97,6.3]
[1725642758790,37.88,126.99,126.97,6.3]
[1725642759190,3.9401,126.98,126.97,6.3]
[1725642759790,4.59150488,126.98,126.97,6.3]
[1725642760199,3.9401,126.98,126.97,6.3]
[1725642760394,4.59155665,126.98,126.97,6.3]
[1725642760593,3.9401,126.98,126.97,6.3]
[1725642761098,3.88228406,127.0,126.97,6.3]
[1725642761295,37.88,127.03,126.95,3.9411]
[1725642761485,0.65165257,127.02,126.95,3.9411]
[1725642761689,0.65165257,127.02,126.93,37.88]
[1725642761889,0.65165257,127.02,126.94,4.03655627]
[1725642762096,0.65165257,127.02,126.93,37.88]
[1725642762299,3.9397,127.0,126.95,3.9411]
[1725642762902,3.9395,127.0,126.94,3.9412]
[1725642763989,37.88,127.03,126.94,3.9412]
[1725642764199,0.65155865,127.02,126.94,7.7973342]
[1725642764397,37.88,127.01,126.93,37.88]
[1725642764593,3.9403,126.98,126.93,41.78265539]
[1725642764799,3.9403,126.98,126.93,45.72415539]
[1725642765100,37.88,127.05,126.97,37.88]
[1725642765306,0.65138978,127.04,126.98,2.6774]
[1725642765698,38.53138978,127.04,126.98,2.6774]
[1725642765900,0.65138978,127.03,126.98,2.6774]
[1725642766200,37.88,127.02,126.93,3.9415]
[1725642766504,3.94,126.99,126.94,3.9412]
[1725642766894,37.88,127.02,126.93,2.6771]
[1725642767105,3.9405,126.97,126.93,2.6771]
[1725642767294,7.92382293,126.97,126.93,2.6771]
[1725642768295,3.9408,126.96,126.93,2.6771]
[1725642769095,3.9406,126.97,126.93,6.6187]
[1725642769299,37.88,127.04,126.94,37.88]
[1725642769505,0.65225067,127.03,126.94,37.72]
[1725642769707,0.65225067,127.03,126.95,10.2409]
[1725642770095,3.94,126.99,126.95,10.2409]
[1725642771002,3.9397,127.0,126.95,6.3]
[1725642771196,3.9318297,127.05,126.96,37.88]
[1725642771401,3.9378,127.06,127.02,3.9389]
[1725642771598,4.00791946,127.07,127.0,37.88]
[1725642771805,102.80990873,127.1,127.01,2.7339]
[1725642772004,3.9378,127.06,127.02,3.9387]
[1725642772501,3.938,127.05,127.01,6.6729]
[1725642772704,37.88,127.08,127.01,2.7339]
[1725642773210,3.9388,127.03,127.01,2.7339]
[1725642774008,3.943226,127.03,126.97,39.251]
[1725642774206,37.88,127.06,126.98,2.7782]
[1725642774396,37.88,127.08,126.99,37.88]
[1725642774602,0.65261852,127.07,126.99,37.88]
[1725642774803,3.9381,127.05,126.99,37.88]
[1725642774999,37.88,127.09,127.0,37.88]
[1725642775210,102.80990873,127.1,127.0,37.88]
[1725642775506,0.65260339,127.09,127.02,3.9388]
[1725642775811,106.67276525,127.1,127.01,7.78215812]
[1725642776206,3.9379,127.06,127.01,7.78215812]
[1725642776603,3.9379,127.06,127.02,3.9387]
[1725642777498,3.938,127.05,127.02,3.9387]
[1725642778301,3.938,127.05,127.01,3.9391]
[1725642779904,3.938,127.05,127.0,37.88]
[1725642779905,3.9386,127.03,127.0,41.8194]
[1725642780413,37.88,127.08,127.0,3.93652854]
[1725642780720,37.88,127.06,126.98,2.7782]
[1725642781005,41.75388762,127.08,126.98,44.63885296]
[1725642781206,41.75388762,127.08,126.98,40.6582]
[1725642781399,3.9385,127.04,127.0,3.9394]
[1725642781605,3.87388762,127.08,127.0,37.88]
[1725642781798,37.88,127.08,126.98,40.6582]
[1725642782011,41.88492797,127.08,126.98,44.69662387]
[1725642782404,4.00492797,127.08,127.0,37.88]
[1725642782707,45.7533,127.1,127.0,37.88]
[1725642783004,0.65226546,127.09,127.0,37.88]
[1725642783709,37.88,127.12,127.0,37.88]
[1725642783912,3.9378,127.06,127.02,3.9387]
[1725642784118,3.9378,127.06,127.0,41.90896621]
[1725642784607,45.75664586,127.24,127.04,37.88]
[1725642784608,227.0,127.17,127.04,37.88]
[1725642784806,37.88,127.14,127.05,2.7734]
[1725642785001,37.88,127.14,127.05,4.0561]
[1725642785002,0.65245957,127.13,127.05,4.0561]
[1725642785809,3.9366,127.1,127.05,7.994]
[1725642786018,7.96948592,127.1,127.05,7.994]
[1725642786204,37.88,127.14,127.05,4.0561]
[1725642786205,3.9368,127.09,127.05,4.0561]
[1725642786405,37.88,127.14,127.05,4.0561]
[1725642786706,0.65272527,127.13,127.05,4.0561]
[1725642788106,3.9366,127.1,127.05,7.9939]
[1725642788307,7.87456205,127.1,127.05,7.9939]
[1725642789014,3.9366,127.1,127.06,37.88]
[1725642789408,7.91985767,127.1,127.06,37.88]
[1725642789709,3.9369,127.09,127.05,4.0561]
[1725642789910,7.95600029,127.09,127.05,4.0561]
[1725642790215,3.9369,127.09,127.05,7.9941]
[1725642790607,3.9366,127.1,127.05,7.9941]
[1725642790806,37.88,127.14,127.06,3.9376]
[1725642791007,0.65272878,127.13,127.05,41.9361]
[1725642791314,3.9365,127.1,127.05,41.9361]
[1725642791814,7.89770873,127.09,127.05,41.9361]
[1725642792112,37.88,127.13,127.05,41.9361]
[1725642792310,3.9364,127.1,127.05,45.8739]
[1725642792508,3.9364,127.1,127.06,6.29]
[1725642793013,4.50566973,127.12,127.06,6.29]
[1725642793214,0.65279353,127.12,127.06,6.29]
[1725642793414,3.9364,127.1,127.06,6.29]
[1725642793809,3.89738852,127.11,127.06,6.29]
[1725642794023,3.937,127.09,127.06,6.29]
[1725642794518,3.9371,127.08,127.06,6.29]
[1725642794912,42.43648468,127.12,127.06,6.29]
[1725642795109,3.9369,127.09,127.06,6.29]
[1725642795721,42.43648468,127.12,127.06,6.29]
[1725642795908,0.65324067,127.11,127.06,6.29]
[1725642796408,3.9369,127.09,127.06,6.29]
[1725642796608,0.65279353,127.12,127.06,6.29]
[1725642797118,4.58879353,127.12,127.07,3.9372]
[1725642797710,3.9364,127.11,127.06,10.2275]
[1725642799418,3.8964,127.11,127.07,3.9373]
[1725642799615,3.9365,127.1,127.06,6.29]
[1725642800320,3.9369,127.09,127.06,6.29]
[1725642800513,3.92001432,127.11,127.06,10.2276]
[1725642800718,3.9366,127.1,127.06,10.2276]
[1725642801015,3.90032367,127.11,127.06,6.29]
[1725642801318,3.9367,127.1,127.06,6.29]